[Event "FIDE WYCC Top Boards Girls 2023"]
[Site "Montesilvano"]
[Date "2023.11.17"]
[Round "5.11"]
[White "Nurgaliyeva, Zarina"]
[Black "Mou, Iris"]
[Result "1/2-1/2"]
[ECO "B13"]
[WhiteElo "2104"]
[BlackElo "2086"]
[Annotator "NA"]
[PlyCount "81"]
[EventDate "2023.11.13"]
[EventType "swiss"]
[EventCountry "ITA"]
[SourceTitle "playchess.com"]
[Source "ChessBase"]
[SourceQuality "1"]
[TimeControl "40/5400+30:1800+30"]

1. e4 {[%emt 0:00:05]} c6 {[%emt 0:00:09]} 2. d4 {[%emt 0:00:07]} d5 {[%emt 0:00:06]} 3. exd5 {[%emt 0:00:06]} cxd5 {[%emt 0:00:08]} 4. Bd3 {[%emt 0:00:05]} Nf6 {[%emt 0:00:26]} 5. h3 {[%emt 0:00:22]} Nc6 {[%emt 0:00:40]} 6. c3 {[%emt 0:01:46]} g6 {[%emt 0:01:57]} 7. Qc2 {[%emt 0:00:21]} e5 {[%emt 0:00:17]} 8. dxe5 {[%emt 0:00:55]} Nxe5 {[%emt 0:00:08]} 9. Qe2 {[%emt 0:00:11]} Qe7 {[%emt 0:00:07]} 10. Bb5+ {[%emt 0:00:13]} Bd7 {[%emt 0:00:14]} 11. Be3 {[%emt 0:00:09]} Bg7 {[%emt 0:10:12]} 12. Bxd7+ {[%emt 0:00:10]} Nfxd7 {[%emt 0:01:25]} 13. Nd2 {[%emt 0:00:28]} O-O {[%emt 0:02:47]} 14. Ngf3 {[%emt 0:05:04]} b5 {[%emt 0:11:22]} 15. O-O {[%emt 0:19:48]} Nxf3+ {[%emt 0:10:14]} 16. Qxf3 {[%emt 0:07:51]} Nf6 {[%emt 0:09:23]} 17. Bd4 {[%emt 0:11:20]} a5 {[%emt 0:09:50]} 18. Rad1 {[%emt 0:03:53]} b4 {[%emt 0:05:28]} 19. Rfe1 {[%emt 0:06:19]} Qd6 {[%emt 0:07:36]} 20. Nb3 {[%emt 0:08:25]} Rfc8 {[%emt 0:03:20]} 21. Nc1 {[%emt 0:09:21]} bxc3 {[%emt 0:03:08]} 22. Bxc3 {[%emt 0:01:12]} Rd8 {[%emt 0:05:46]} 23. Nd3 {[%emt 0:03:59]} a4 {[%emt 0:04:02]} 24. Bb4 {[%emt 0:04:35]} Qb6 {[%emt 0:03:27]} 25. Bc5 {[%emt 0:00:21]} Qa6 {[%emt 0:01:01]} 26. Be7 {[%emt 0:05:18]} Re8 {[%emt 0:01:40]} 27. Nb4 {[%emt 0:04:56]} Qb7 {[%emt 0:02:26]} 28. Bxf6 {[%emt 0:01:31]} Rxe1+ {[%emt 0:01:45]} 29. Rxe1 {[%emt 0:00:01]} Qxb4 {[%emt 0:00:19]} 30. Rd1 {[%emt 0:02:41]} Bxf6 {[%emt 0:01:02]} 31. Qxf6 {[%emt 0:00:07]} Qc4 {[%emt 0:00:37]} 32. a3 {[%emt 0:00:37]} Re8 {[%emt 0:01:23]} 33. h4 {[%emt 0:02:23]} h5 {[%emt 0:00:59]} 34. g3 {[%emt 0:00:58]} Qb3 {[%emt 0:02:05]} 35. Rc1 {[%emt 0:01:35]} Rb8 {[%emt 0:01:30]} 36. Rc7 {[%emt 0:00:23]} Rf8 {[%emt 0:00:10]} 37. Rd7 {[%emt 0:00:37]} Qb5 {[%emt 0:00:33]} 38. Re7 {[%emt 0:00:39]} Qc4 {[%emt 0:00:44]} 39. Rd7 {[%emt 0:00:25]} Qb5 {[%emt 0:00:12]} 40. Re7 {[%emt 0:00:00]} Qc4 {[%emt 0:00:00]} 41. Rd7 {[%emt 0:00:37]} 1/2-1/2

[Event "FIDE WYCC Top Boards Girls 2023"]
[Site "Montesilvano"]
[Date "2023.11.17"]
[Round "5.12"]
[White "Kaliakhmet, Elnaz"]
[Black "Natoli, Alessia"]
[Result "1-0"]
[ECO "D28"]
[WhiteElo "1933"]
[BlackElo "1756"]
[Annotator "NA"]
[PlyCount "85"]
[EventDate "2023.11.13"]
[EventType "swiss"]
[EventCountry "ITA"]
[SourceTitle "playchess.com"]
[Source "ChessBase"]
[SourceQuality "1"]
[TimeControl "40/5400+30:1800+30"]

1. d4 {[%emt 0:00:04]} d5 {[%emt 0:00:10]} 2. c4 {[%emt 0:00:34]} dxc4 {[%emt 0:00:15]} 3. Nf3 {[%emt 0:01:05]} Nf6 {[%emt 0:00:30]} 4. e3 {[%emt 0:00:40]} e6 {[%emt 0:00:30]} 5. Bxc4 {[%emt 0:00:29]} c5 {[%emt 0:00:30]} 6. O-O {[%emt 0:00:22]} a6 {[%emt 0:01:12]} 7. Qe2 {[%emt 0:00:17]} b5 {[%emt 0:01:52]} 8. Bd3 {[%emt 0:00:05]} Bb7 {[%emt 0:02:20]} 9. dxc5 {[%emt 0:01:14]} Nc6 {[%emt 0:02:26]} 10. Rd1 {[%emt 0:11:47]} Qc7 {[%emt 0:01:44]} 11. a3 {[%emt 0:00:30]} Bxc5 {[%emt 0:03:04]} 12. b4 {[%emt 0:01:12]} Be7 {[%emt 0:03:46]} 13. Bb2 {[%emt 0:00:10]} O-O {[%emt 0:01:23]} 14. Nbd2 {[%emt 0:04:21]} Rad8 {[%emt 0:08:18]} 15. Rac1 {[%emt 0:01:10]} Qb8 {[%emt 0:09:35]} 16. Nb3 {[%emt 0:39:01]} e5 {[%emt 0:07:55]} 17. Bb1 {[%emt 0:14:34]} Rfe8 {[%emt 0:06:38]} 18. Nc5 {[%emt 0:01:16]} Bxc5 {[%emt 0:04:38]} 19. Rxc5 {[%emt 0:00:54]} e4 {[%emt 0:02:40]} 20. Rxd8 {[%emt 0:03:11]} Rxd8 {[%emt 0:03:47]} 21. Ne5 {[%emt 0:04:15]} Qd6 {[%emt 0:02:28]} 22. Nxc6 {[%emt 0:01:43]} Bxc6 {[%emt 0:02:41]} 23. Bd4 {[%emt 0:00:18]} Nd7 {[%emt 0:05:46]} 24. Qg4 {[%emt 0:03:38]} g6 {[%emt 0:05:38]} 25. Rc1 {[%emt 0:00:51]} Re8 {[%emt 0:05:49]} 26. Ba2 {[%emt 0:03:07]} Bd5 {[%emt 0:01:59]} 27. Bxd5 {[%emt 0:00:11]} Qxd5 {[%emt 0:00:03]} 28. h3 {[%emt 0:00:52]} Nf8 {[%emt 0:02:20]} 29. Rc5 {[%emt 0:01:59]} Qe6 {[%emt 0:01:05]} 30. Qf4 {[%emt 0:00:24]} Nd7 {[%emt 0:01:20]} 31. Rc7 {[%emt 0:00:43]} f6 {[%emt 0:03:21]} 32. Rc1 {[%emt 0:02:38]} Ne5 {[%emt 0:02:16]} 33. Qxe4 {[%emt 0:02:38]} Nc4 {[%emt 0:00:46]} 34. Qf4 {[%emt 0:00:07]} Rf8 {[%emt 0:00:52]} 35. a4 {[%emt 0:00:34]} bxa4 {[%emt 0:00:38]} 36. Bc5 {[%emt 0:00:16]} Ne5 {[%emt 0:01:45]} 37. Bxf8 {[%emt 0:00:13]} Kxf8 {[%emt 0:00:01]} 38. Qd4 {[%emt 0:00:50]} a3 {[%emt 0:01:10]} 39. Ra1 {[%emt 0:01:00]} Qb3 {[%emt 0:00:53]} 40. Qd6+ {[%emt 0:00:00]} Kg7 {[%emt 0:00:00]} 41. Qe7+ {[%emt 0:04:48]} Kh6 {[%emt 0:03:22]} 42. Qxf6 {[%emt 0:06:00]} Nc4 {[%emt 0:01:40]} 43. Qf8+ {[%emt 0:00:16]} 1-0

[Event "FIDE WYCC Top Boards Girls 2023"]
[Site "Montesilvano"]
[Date "2023.11.18"]
[Round "6.7"]
[White "Hrebenshchykova, Yelyzaveta"]
[Black "Wikar, Martyna"]
[Result "1/2-1/2"]
[ECO "A14"]
[WhiteElo "2292"]
[BlackElo "2228"]
[Annotator "RC"]
[PlyCount "120"]
[EventDate "2023.11.13"]
[EventType "swiss"]
[EventCountry "ITA"]
[SourceTitle "playchess.com"]
[Source "ChessBase"]
[SourceQuality "1"]
[TimeControl "40/5400+30:1800+30"]

1. Nf3 {[%emt 0:00:03]} Nf6 {[%emt 0:00:44]} 2. c4 {[%emt 0:00:41]} e6 {[%emt 0:00:54]} 3. g3 {[%emt 0:00:46]} d5 {[%emt 0:09:59]} 4. Bg2 {[%emt 0:00:47]} Be7 {[%emt 0:02:52]} 5. O-O {[%emt 0:02:08]} O-O {[%emt 0:00:22]} 6. b3 {[%emt 0:00:27]} c5 {[%emt 0:05:29]} 7. e3 {[%emt 0:11:46]} Nc6 {[%emt 0:03:11]} 8. Bb2 {[%emt 0:06:59]} Qc7 {[%emt 0:09:09]} 9. Nc3 {[%emt 0:20:45]} Rd8 {[%emt 0:01:55]} 10. cxd5 {[%emt 0:00:27]} exd5 {[%emt 0:10:10]} 11. d4 {[%emt 0:02:00]} b6 {[%emt 0:02:01]} 12. Rc1 {[%emt 0:05:47]} Ba6 {[%emt 0:03:38]} 13. Re1 {[%emt 0:04:32]} Rac8 {[%emt 0:04:01]} 14. Bh3 {[%emt 0:13:41]} Rb8 {[%emt 0:01:27]} 15. a4 {[%emt 0:02:43]} Qb7 {[%emt 0:11:52]} 16. Nb5 {[%emt 0:05:39]} Nb4 {[%emt 0:04:43]} 17. Ba3 {[%emt 0:05:59]} Bxb5 {[%emt 0:04:03]} 18. axb5 {[%emt 0:00:04]} Bd6 {[%emt 0:00:48]} 19. dxc5 {[%emt 0:05:56]} Bxc5 {[%emt 0:08:12]} 20. Nd4 {[%emt 0:00:34]} a5 {[%emt 0:02:53]} 21. Bxb4 {[%emt 0:02:37]} Bxb4 {[%emt 0:06:18]} 22. Re2 {[%emt 0:00:30]} Ra8 {[%emt 0:00:10]} 23. Nc6 {[%emt 0:00:11]} Re8 {[%emt 0:00:09]} 24. Nxb4 {[%emt 0:00:11]} axb4 {[%emt 0:00:02]} 25. Rec2 {[%emt 0:00:04]} Qe7 {[%emt 0:02:28]} 26. Qd4 {[%emt 0:00:56]} Rab8 {[%emt 0:00:38]} 27. Rc7 {[%emt 0:02:55]} Qe4 {[%emt 0:01:21]} 28. Qd2 {[%emt 0:02:09]} h5 {[%emt 0:02:14]} 29. Bg2 {[%emt 0:00:20]} Qf5 {[%emt 0:00:14]} 30. Qxb4 {[%emt 0:00:36]} Ne4 {[%emt 0:00:09]} 31. R7c2 {[%emt 0:01:07]} h4 {[%emt 0:00:25]} 32. f3 {[%emt 0:01:14]} Nc5 {[%emt 0:00:41]} 33. Qf4 {[%emt 0:00:33]} Qxf4 {[%emt 0:02:07]} 34. exf4 {[%emt 0:00:07]} hxg3 {[%emt 0:00:28]} 35. hxg3 {[%emt 0:00:05]} Nxb3 {[%emt 0:00:31]} 36. Rd1 {[%emt 0:00:08]} Red8 {[%emt 0:01:16]} 37. Rb2 {[%emt 0:00:43]} Nc5 {[%emt 0:00:44]} 38. Rbd2 {[%emt 0:00:05]} Kf8 {[%emt 0:00:35]} 39. Rxd5 {[%emt 0:00:28]} Rxd5 {[%emt 0:00:06]} 40. Rxd5 {[%emt 0:00:00]} Ke7 {[%emt 0:00:00]} 41. Kf2 {[%emt 0:06:28]} Ra8 {[%emt 0:02:01]} 42. Rd2 {[%emt 0:00:22]} Ra4 {[%emt 0:08:25]} 43. Bf1 {[%emt 0:05:12]} g6 {[%emt 0:04:33]} 44. Rc2 {[%emt 0:01:42]} Rb4 {[%emt 0:00:51]} 45. Ra2 {[%emt 0:02:28]} Ke6 {[%emt 0:01:13]} 46. Be2 {[%emt 0:01:42]} Na4 {[%emt 0:02:54]} 47. Rc2 {[%emt 0:01:24]} Nc5 {[%emt 0:00:41]} 48. Ke3 {[%emt 0:03:07]} Kd5 {[%emt 0:02:19]} 49. Rd2+ {[%emt 0:01:15]} Ke6 {[%emt 0:00:01]} 50. g4 {[%emt 0:06:25]} Ke7 {[%emt 0:01:58]} 51. Rd4 {[%emt 0:03:07]} Rxd4 {[%emt 0:05:10]} 52. Kxd4 {[%emt 0:00:07]} Ne6+ {[%emt 0:00:16]} 53. Ke4 {[%emt 0:00:13]} f6 {[%emt 0:02:55]} 54. Bc4 {[%emt 0:00:42]} Nc7 {[%emt 0:02:11]} 55. f5 {[%emt 0:04:17]} g5 {[%emt 0:00:58]} 56. f4 {[%emt 0:00:05]} gxf4 {[%emt 0:00:07]} 57. Kxf4 {[%emt 0:00:02]} Ne8 {[%emt 0:00:09]} 58. Bd5 {[%emt 0:00:55]} Nd6 {[%emt 0:00:58]} 59. Bc6 {[%emt 0:00:32]} Nf7 {[%emt 0:00:00]} 60. Bd5 {[%emt 0:00:16]} Nd6 {[%emt 0:00:14]} 1/2-1/2

[Event "FIDE WYCC Top Boards Girls 2023"]
[Site "Montesilvano"]
[Date "2023.11.18"]
[Round "6.8"]
[White "Wu, Rochelle"]
[Black "Balabayeva, Xeniya"]
[Result "1/2-1/2"]
[ECO "D36"]
[WhiteElo "2228"]
[BlackElo "2192"]
[Annotator "RC"]
[PlyCount "112"]
[EventDate "2023.11.13"]
[EventType "swiss"]
[EventCountry "ITA"]
[SourceTitle "playchess.com"]
[Source "ChessBase"]
[SourceQuality "1"]
[TimeControl "40/5400+30:1800+30"]

1. d4 {[%emt 0:00:04]} d5 {[%emt 0:00:07]} 2. c4 {[%emt 0:00:12]} e6 {[%emt 0:00:06]} 3. Nc3 {[%emt 0:00:07]} Nf6 {[%emt 0:00:21]} 4. cxd5 {[%emt 0:00:09]} exd5 {[%emt 0:00:06]} 5. Bg5 {[%emt 0:00:07]} c6 {[%emt 0:00:09]} 6. e3 {[%emt 0:00:12]} h6 {[%emt 0:00:15]} 7. Bh4 {[%emt 0:00:19]} Be7 {[%emt 0:00:18]} 8. Bd3 {[%emt 0:00:10]} O-O {[%emt 0:01:01]} 9. Nge2 {[%emt 0:05:04]} Re8 {[%emt 0:02:06]} 10. Qc2 {[%emt 0:03:26]} Nbd7 {[%emt 0:00:56]} 11. O-O {[%emt 0:02:18]} Nh5 {[%emt 0:00:45]} 12. Bxe7 {[%emt 0:00:37]} Qxe7 {[%emt 0:00:07]} 13. Rae1 {[%emt 0:00:18]} Ndf6 {[%emt 0:11:05]} 14. Nc1 {[%emt 0:04:38]} g6 {[%emt 0:03:28]} 15. f3 {[%emt 0:01:21]} Ng7 {[%emt 0:08:12]} 16. Qd2 {[%emt 0:11:47]} Qd6 {[%emt 0:05:37]} 17. Bb1 {[%emt 0:04:58]} Rd8 {[%emt 0:31:04]} 18. Rd1 {[%emt 0:05:31]} Ne6 {[%emt 0:05:49]} 19. Nd3 {[%emt 0:03:17]} b6 {[%emt 0:02:42]} 20. Ne5 {[%emt 0:03:01]} Ba6 {[%emt 0:10:18]} 21. Rf2 {[%emt 0:02:10]} Ng7 {[%emt 0:02:36]} 22. e4 {[%emt 0:05:41]} h5 {[%emt 0:03:29]} 23. Nxf7 {[%emt 0:12:07]} Kxf7 {[%emt 0:00:17]} 24. e5 {[%emt 0:00:03]} Qe6 {[%emt 0:02:05]} 25. exf6 {[%emt 0:00:06]} Qxf6 {[%emt 0:00:37]} 26. Ne4 {[%emt 0:00:11]} dxe4 {[%emt 0:02:54]} 27. fxe4 {[%emt 0:00:05]} Nf5 {[%emt 0:00:02]} 28. exf5 {[%emt 0:01:13]} g5 {[%emt 0:00:12]} 29. Qc3 {[%emt 0:04:57]} Rd6 {[%emt 0:01:54]} 30. Rfd2 {[%emt 0:02:08]} Rad8 {[%emt 0:01:46]} 31. Qb4 {[%emt 0:08:29]} Bc8 {[%emt 0:02:40]} 32. Bc2 {[%emt 0:04:19]} Kg7 {[%emt 0:00:42]} 33. Qa3 {[%emt 0:08:23]} R8d7 {[%emt 0:02:33]} 34. h3 {[%emt 0:01:30]} h4 {[%emt 0:00:34]} 35. Kh1 {[%emt 0:01:15]} Re7 {[%emt 0:00:28]} 36. Qf3 {[%emt 0:00:56]} c5 {[%emt 0:00:36]} 37. Qg4 {[%emt 0:03:16]} cxd4 {[%emt 0:00:21]} 38. g3 {[%emt 0:02:02]} Bb7+ {[%emt 0:00:28]} 39. Kg1 {[%emt 0:00:07]} hxg3 {[%emt 0:00:35]} 40. h4 {[%emt 0:00:00]} Kh6 {[%emt 0:00:00]} 41. Qxg3 {[%emt 0:06:53]} gxh4 {[%emt 0:04:01]} 42. Qf4+ {[%emt 0:01:33]} Qg5+ {[%emt 0:05:19]} 43. Qxg5+ {[%emt 0:00:06]} Kxg5 {[%emt 0:00:03]} 44. Kh2 {[%emt 0:04:08]} Ba6 {[%emt 0:05:00]} 45. Rg2+ {[%emt 0:05:39]} Kh6 {[%emt 0:03:00]} 46. f6 {[%emt 0:04:27]} Re2 {[%emt 0:07:16]} 47. f7 {[%emt 0:00:11]} Rxg2+ {[%emt 0:00:10]} 48. Kxg2 {[%emt 0:00:04]} Kg7 {[%emt 0:01:12]} 49. Bb3 {[%emt 0:00:04]} Bb7+ {[%emt 0:03:01]} 50. Kh3 {[%emt 0:03:57]} Bd5 {[%emt 0:00:35]} 51. Bxd5 {[%emt 0:00:16]} Rxd5 {[%emt 0:00:09]} 52. Rf1 {[%emt 0:00:04]} Kf8 {[%emt 0:05:09]} 53. Kxh4 {[%emt 0:00:10]} Rd7 {[%emt 0:01:25]} 54. Kg4 {[%emt 0:00:57]} Rc7 {[%emt 0:00:49]} 55. Rd1 {[%emt 0:01:18]} Rd7 {[%emt 0:00:29]} 56. Rf1 {[%emt 0:00:18]} Rxf7 {[%emt 0:00:38]} 1/2-1/2

[Event "FIDE WYCC Top Boards Girls 2023"]
[Site "Montesilvano"]
[Date "2023.11.18"]
[Round "6.9"]
[White "Wang, Chuqiao"]
[Black "Shvedova, Alexandra"]
[Result "1-0"]
[ECO "D38"]
[WhiteElo "2215"]
[BlackElo "2170"]
[Annotator "RC"]
[PlyCount "99"]
[EventDate "2023.11.13"]
[EventType "swiss"]
[EventCountry "ITA"]
[SourceTitle "playchess.com"]
[Source "ChessBase"]
[SourceQuality "1"]
[TimeControl "40/5400+30:1800+30"]

1. d4 {[%emt 0:00:08]} Nf6 {[%emt 0:00:07]} 2. c4 {[%emt 0:00:06]} e6 {[%emt 0:00:04]} 3. Nf3 {[%emt 0:00:06]} d5 {[%emt 0:00:07]} 4. Nc3 {[%emt 0:00:08]} Bb4 {[%emt 0:00:30]} 5. Bg5 {[%emt 0:02:17]} h6 {[%emt 0:01:02]} 6. Bxf6 {[%emt 0:00:16]} Qxf6 {[%emt 0:00:07]} 7. Qb3 {[%emt 0:02:00]} c5 {[%emt 0:01:02]} 8. cxd5 {[%emt 0:01:34]} exd5 {[%emt 0:01:56]} 9. dxc5 {[%emt 0:03:03]} Bxc3+ {[%emt 0:02:56]} 10. Qxc3 {[%emt 0:00:27]} Qxc3+ {[%emt 0:00:07]} 11. bxc3 {[%emt 0:00:03]} Na6 {[%emt 0:07:11]} 12. c6 {[%emt 0:15:18]} bxc6 {[%emt 0:01:26]} 13. e3 {[%emt 0:00:06]} Rb8 {[%emt 0:08:05]} 14. c4 {[%emt 0:03:56]} Rb2 {[%emt 0:18:04]} 15. cxd5 {[%emt 0:00:36]} Nb4 {[%emt 0:07:55]} 16. Nd4 {[%emt 0:09:17]} Nxd5 {[%emt 0:24:53]} 17. Nxc6 {[%emt 0:09:11]} Nc3 {[%emt 0:06:46]} 18. Nd4 {[%emt 0:03:56]} Bb7 {[%emt 0:02:08]} 19. Bc4 {[%emt 0:01:34]} Bxg2 {[%emt 0:01:31]} 20. Rg1 {[%emt 0:00:09]} Bd5 {[%emt 0:00:15]} 21. Bxd5 {[%emt 0:01:05]} Nxd5 {[%emt 0:00:04]} 22. Rxg7 {[%emt 0:00:54]} Ke7 {[%emt 0:01:30]} 23. Rg4 {[%emt 0:04:13]} Rc8 {[%emt 0:03:47]} 24. a3 {[%emt 0:01:13]} Kf6 {[%emt 0:02:19]} 25. Rh4 {[%emt 0:02:40]} Kg6 {[%emt 0:01:29]} 26. Rh3 {[%emt 0:00:54]} Nf6 {[%emt 0:03:40]} 27. Rg3+ {[%emt 0:03:09]} Kh7 {[%emt 0:00:05]} 28. Rf3 {[%emt 0:01:10]} Kg6 {[%emt 0:00:25]} 29. Rf4 {[%emt 0:01:06]} Rc5 {[%emt 0:01:14]} 30. Kf1 {[%emt 0:02:36]} Rh5 {[%emt 0:02:31]} 31. Rc1 {[%emt 0:01:50]} Nd5 {[%emt 0:01:09]} 32. Rc6+ {[%emt 0:00:16]} f6 {[%emt 0:00:31]} 33. Rg4+ {[%emt 0:00:12]} Kf7 {[%emt 0:01:09]} 34. e4 {[%emt 0:00:23]} Ne7 {[%emt 0:00:09]} 35. Rc7 {[%emt 0:00:20]} Rxh2 {[%emt 0:00:42]} 36. Rf4 {[%emt 0:03:16]} Ke8 {[%emt 0:00:39]} 37. Rxf6 {[%emt 0:00:35]} Rb1+ {[%emt 0:00:16]} 38. Ke2 {[%emt 0:00:05]} Rb2+ {[%emt 0:00:04]} 39. Ke3 {[%emt 0:00:30]} Rh3+ {[%emt 0:01:13]} 40. f3 {[%emt 0:00:00]} Rb6 {[%emt 0:00:00]} 41. Rxb6 {[%emt 0:10:42]} axb6 {[%emt 0:00:50]} 42. Rb7 {[%emt 0:00:23]} Nc8 {[%emt 0:01:36]} 43. Nf5 {[%emt 0:03:20]} Rh1 {[%emt 0:03:45]} 44. e5 {[%emt 0:03:30]} Kd8 {[%emt 0:03:22]} 45. Ke4 {[%emt 0:01:39]} Re1+ {[%emt 0:05:29]} 46. Kd5 {[%emt 0:00:31]} Rf1 {[%emt 0:00:27]} 47. Ke6 {[%emt 0:03:31]} Rxf3 {[%emt 0:01:20]} 48. Rd7+ {[%emt 0:00:07]} Ke8 {[%emt 0:00:05]} 49. Ng7+ {[%emt 0:00:02]} Kf8 {[%emt 0:00:06]} 50. Nh5 {[%emt 0:00:01]} 1-0

[Event "FIDE WYCC Top Boards Girls 2023"]
[Site "Montesilvano"]
[Date "2023.11.18"]
[Round "6.10"]
[White "Shubhi Gupta"]
[Black "Nurmanova, Alua"]
[Result "*"]
[ECO "E94"]
[WhiteElo "1940"]
[BlackElo "2367"]
[Annotator "ChessBase"]
[PlyCount "58"]
[EventDate "2023.11.13"]
[EventType "swiss"]
[EventCountry "ITA"]
[SourceTitle "playchess.com"]
[Source "ChessBase"]
[SourceQuality "1"]
[TimeControl "40/5400+30:1800+30"]

1. d4 {[%emt 0:01:42]} Nf6 {[%emt 0:00:44]} 2. c4 {[%emt 0:00:39]} g6 {[%emt 0:00:34]} 3. Nc3 {[%emt 0:00:37]} Bg7 {[%emt 0:00:50]} 4. Nf3 {[%emt 0:00:39]} d6 {[%emt 0:00:28]} 5. e4 {[%emt 0:00:52]} O-O {[%emt 0:01:03]} 6. Be2 {[%emt 0:01:31]} Nbd7 {[%emt 0:08:46]} 7. O-O {[%emt 0:14:30]} e5 {[%emt 0:00:33]} 8. Be3 {[%emt 0:00:14]} Ng4 {[%emt 0:18:12]} 9. Bg5 {[%emt 0:01:37]} f6 {[%emt 0:00:17]} 10. Bc1 {[%emt 0:01:51]} Nh6 {[%emt 0:06:29]} 11. Qc2 {[%emt 0:10:15]} c6 {[%emt 0:07:00]} 12. Rd1 {[%emt 0:01:57]} Qe7 {[%emt 0:10:18]} 13. b3 {[%emt 0:06:14]} exd4 {[%emt 0:01:40]} 14. Nxd4 {[%emt 0:00:34]} a5 {[%emt 0:00:32]} 15. Bb2 {[%emt 0:10:22]} Nc5 {[%emt 0:01:33]} 16. Bf3 {[%emt 0:00:55]} f5 {[%emt 0:06:09]} 17. Qe2 {[%emt 0:04:42]} f4 {[%emt 0:03:58]} 18. Rd2 {[%emt 0:03:32]} Be5 {[%emt 0:06:40]} 19. Na4 {[%emt 0:02:55]} Nxa4 {[%emt 0:03:34]} 20. bxa4 {[%emt 0:00:14]} Nf7 {[%emt 0:00:13]} 21. Rad1 {[%emt 0:01:23]} Bd7 {[%emt 0:00:23]} 22. Ba3 {[%emt 0:01:55]} Rad8 {[%emt 0:05:06]} 23. Nb3 {[%emt 0:08:40]} c5 {[%emt 0:04:07]} 24. Nxa5 {[%emt 0:12:11]} Bxa4 {[%emt 0:00:13]} 25. Nb3 {[%emt 0:00:09]} Rb8 {[%emt 0:00:32]} 26. Rc1 {[%emt 0:01:43]} b5 {[%emt 0:00:42]} 27. cxb5 {[%emt 0:01:43]} Bxb5 {[%emt 0:00:08]} 28. Qd1 {[%emt 0:00:28]} Qa7 {[%emt 0:05:21]} 29. Bb2 {[%emt 0:01:15]} c4 {[%emt 0:00:10]} *

[Event "FIDE WYCC Top Boards Girls 2023"]
[Site "Montesilvano"]
[Date "2023.11.18"]
[Round "6.11"]
[White "Shukhman, Anna"]
[Black "Piddubna, Bozhena"]
[Result "1-0"]
[ECO "C96"]
[WhiteElo "2263"]
[BlackElo "2081"]
[Annotator "RC"]
[PlyCount "117"]
[EventDate "2023.11.13"]
[EventType "swiss"]
[EventCountry "ITA"]
[SourceTitle "playchess.com"]
[Source "ChessBase"]
[SourceQuality "1"]
[TimeControl "40/5400+30:1800+30"]

1. e4 {[%emt 0:00:05]} e5 {[%emt 0:00:07]} 2. Nf3 {[%emt 0:00:04]} Nc6 {[%emt 0:00:07]} 3. Bb5 {[%emt 0:00:04]} a6 {[%emt 0:00:06]} 4. Ba4 {[%emt 0:00:03]} Nf6 {[%emt 0:00:06]} 5. O-O {[%emt 0:00:06]} Be7 {[%emt 0:00:10]} 6. Re1 {[%emt 0:00:04]} b5 {[%emt 0:00:34]} 7. Bb3 {[%emt 0:00:03]} d6 {[%emt 0:00:09]} 8. c3 {[%emt 0:00:04]} O-O {[%emt 0:00:11]} 9. h3 {[%emt 0:00:06]} Na5 {[%emt 0:00:24]} 10. Bc2 {[%emt 0:00:04]} d5 {[%emt 0:01:21]} 11. d4 {[%emt 0:08:33]} dxe4 {[%emt 0:00:41]} 12. Nxe5 {[%emt 0:00:09]} c5 {[%emt 0:00:34]} 13. dxc5 {[%emt 0:16:34]} Bxc5 {[%emt 0:02:11]} 14. Qxd8 {[%emt 0:06:33]} Rxd8 {[%emt 0:00:10]} 15. b4 {[%emt 0:00:01]} Bd6 {[%emt 0:01:26]} 16. f4 {[%emt 0:01:36]} Nc4 {[%emt 0:11:18]} 17. Nxc4 {[%emt 0:03:10]} bxc4 {[%emt 0:00:11]} 18. Nd2 {[%emt 0:09:45]} Bxf4 {[%emt 0:11:19]} 19. Nxe4 {[%emt 0:00:03]} Be5 {[%emt 0:00:31]} 20. Bg5 {[%emt 0:01:35]} Bb7 {[%emt 0:14:41]} 21. Nc5 {[%emt 0:03:24]} Bxc3 {[%emt 0:00:16]} 22. Nxb7 {[%emt 0:00:04]} Bxa1 {[%emt 0:00:11]} 23. Rxa1 {[%emt 0:00:10]} Rdb8 {[%emt 0:00:09]} 24. Bxf6 {[%emt 0:02:11]} gxf6 {[%emt 0:00:19]} 25. Be4 {[%emt 0:00:02]} Ra7 {[%emt 0:00:21]} 26. Na5 {[%emt 0:00:03]} Rc7 {[%emt 0:00:40]} 27. a3 {[%emt 0:09:05]} c3 {[%emt 0:30:42]} 28. Rc1 {[%emt 0:10:55]} Re8 {[%emt 0:05:37]} 29. Bc2 {[%emt 0:04:16]} Rd8 {[%emt 0:13:16]} 30. Nb3 {[%emt 0:00:28]} Re7 {[%emt 0:01:22]} 31. Nc5 {[%emt 0:04:14]} Re3 {[%emt 0:01:27]} 32. Kf2 {[%emt 0:04:20]} Re7 {[%emt 0:00:42]} 33. Bd3 {[%emt 0:00:13]} a5 {[%emt 0:01:26]} 34. Rxc3 {[%emt 0:00:13]} axb4 {[%emt 0:00:03]} 35. axb4 {[%emt 0:00:02]} Rc7 {[%emt 0:01:05]} 36. Be4 {[%emt 0:00:47]} Rd4 {[%emt 0:00:47]} 37. Rb3 {[%emt 0:07:49]} Rxc5 {[%emt 0:00:36]} 38. bxc5 {[%emt 0:00:03]} Rxe4 {[%emt 0:00:05]} 39. Rc3 {[%emt 0:00:01]} Re8 {[%emt 0:02:55]} 40. c6 {[%emt 0:00:00]} Kf8 {[%emt 0:00:00]} 41. Kf3 {[%emt 0:00:31]} Rc8 {[%emt 0:00:44]} 42. Ke4 {[%emt 0:00:06]} Ke7 {[%emt 0:00:16]} 43. g4 {[%emt 0:04:09]} h6 {[%emt 0:01:40]} 44. Kf5 {[%emt 0:03:04]} Rc7 {[%emt 0:00:39]} 45. h4 {[%emt 0:00:18]} Kd6 {[%emt 0:01:26]} 46. Kxf6 {[%emt 0:00:08]} Kd5 {[%emt 0:00:02]} 47. h5 {[%emt 0:00:55]} Ke4 {[%emt 0:01:10]} 48. g5 {[%emt 0:00:12]} hxg5 {[%emt 0:00:08]} 49. h6 {[%emt 0:00:02]} g4 {[%emt 0:01:34]} 50. h7 {[%emt 0:00:04]} Rc8 {[%emt 0:00:04]} 51. c7 {[%emt 0:00:14]} Kf4 {[%emt 0:01:11]} 52. Kg7 {[%emt 0:00:17]} g3 {[%emt 0:00:24]} 53. h8=Q {[%emt 0:00:06]} Rxh8 {[%emt 0:00:08]} 54. Kxh8 {[%emt 0:00:04]} g2 {[%emt 0:00:05]} 55. Rc1 {[%emt 0:00:04]} f5 {[%emt 0:00:06]} 56. c8=Q {[%emt 0:00:06]} Kg4 {[%emt 0:00:06]} 57. Rg1 {[%emt 0:00:18]} Kh4 {[%emt 0:01:00]} 58. Rxg2 {[%emt 0:00:09]} f4 {[%emt 0:00:13]} 59. Qg4# {[%emt 0:00:03]} 1-0